bitfinex-derivatives/quotes_SOLF0:USTF0_20241107
["timestamp","ask_amount","ask_price","bid_price","bid_amount"]
[1730954396192,2.6378,189.41,189.39,6.49227948]
[1730954396980,9.39227948,189.44,189.39,6.49227948]
[1730954397181,2.6376,189.42,189.39,6.49227948]
[1730954399092,2.6376,189.42,189.33,2.6388]
[1730954399285,2.6376,189.42,189.37,6.49227948]
[1730954399487,9.12987948,189.42,189.37,6.49227948]
[1730954399984,2.638,189.4,189.37,6.49227948]
[1730954400693,2.638,189.4,189.32,5.2468]
[1730954400897,2.638,189.4,189.36,6.49227948]
[1730954401086,2.638,189.4,189.32,5.2468]
[1730954401288,2.638,189.39,189.36,6.49227948]
[1730954401788,2.9,189.41,189.36,6.49227948]
[1730954402189,2.638,189.39,189.36,6.49227948]
[1730954404689,2.638,189.39,189.32,2.6078]
[1730954404690,2.638,189.39,189.35,6.49227948]
[1730954405294,6.49227948,189.39,189.32,2.6078]
[1730954405491,6.49227948,189.37,189.23,21.33648686]
[1730954405697,6.49227948,189.35,189.3,6.49227948]
[1730954405990,2.6389,189.33,189.28,6.49227948]
[1730954406395,6.49227948,189.33,189.24,3.7906]
[1730954406586,6.49227948,189.33,189.28,6.49227948]
[1730954406787,2.6392,189.31,189.28,6.49227948]
[1730954407198,2.6396,189.28,189.19,2.6407]
[1730954407495,2.6396,189.28,189.24,6.49227948]
[1730954409387,2.6396,189.28,189.2,3.934]
[1730954409795,2.6396,189.28,189.23,6.49227948]
[1730954409993,2.9,189.35,189.27,6.49227948]
[1730954410199,2.9,189.35,189.22,2.9]
[1730954410200,6.49227948,189.37,189.31,6.49227948]
[1730954410397,2.6379,189.4,189.33,6.49227948]
[1730954410592,2.6379,189.4,189.35,6.49227948]
[1730954410988,5.5379,189.4,189.35,6.49227948]
[1730954411393,2.6379,189.4,189.35,6.49227948]
[1730954412301,12.02997948,189.41,189.35,6.49227948]
[1730954412491,6.49227948,189.39,189.31,1.1894]
[1730954412688,6.49227948,189.39,189.33,6.49227948]
[1730954412895,9.13047948,189.39,189.33,6.49227948]
[1730954413196,6.49227948,189.39,189.33,6.49227948]
[1730954413395,18.69,189.41,189.31,1.1894]
[1730954413597,2.6383,189.37,189.31,1.1894]
[1730954414195,18.69,189.41,189.28,10.14818985]
[1730954414196,2.6386,189.35,189.28,10.14818985]
[1730954414396,2.6386,189.35,189.26,10.14818985]
[1730954414902,2.6389,189.33,189.26,10.14818985]
[1730954415697,2.9,189.36,189.26,10.14818985]
[1730954415902,2.639,189.32,189.26,10.14818985]
[1730954417507,1.2913,189.35,189.26,10.14818985]
[1730954418606,3.93,189.35,189.28,2.6395]
[1730954418805,3.93,189.35,189.24,2.4865]
[1730954418806,17.0705,189.45,189.29,10.14818985]
[1730954419004,11.43358985,189.43,189.31,10.14818985]
[1730954419205,2.6382,189.39,189.32,2.639]
[1730954419607,14.33358985,189.43,189.26,2.9]
[1730954419902,10.14818985,189.41,189.29,10.14818985]
[1730954420406,2.6383,189.38,189.29,10.14818985]
[1730954420607,5.5383,189.38,189.26,2.9]
[1730954420804,5.5383,189.38,189.29,10.14818985]
[1730954421108,2.9,189.38,189.29,10.14818985]
[1730954421303,2.6383,189.37,189.3,2.6392]
[1730954422607,2.6386,189.35,189.29,2.6394]
[1730954422809,2.9,189.38,189.29,12.78758985]
[1730954423207,2.6389,189.33,189.26,2.6398]
[1730954424109,2.9,189.38,189.3,2.6392]
[1730954424708,2.6386,189.35,189.28,12.78758985]
[1730954424909,2.9,189.38,189.28,10.14818985]
[1730954426910,2.639,189.33,189.28,10.14818985]
[1730954427105,2.9,189.38,189.28,12.78768985]
[1730954427309,2.6386,189.35,189.28,12.78768985]
[1730954429012,10.14818985,189.36,189.26,2.9]
[1730954429217,10.14818985,189.36,189.24,2.4865]
[1730954429514,2.6391,189.32,189.24,5.1265]
[1730954430601,2.6391,189.32,189.25,2.6399]
[1730954431112,2.6391,189.31,189.25,2.6399]
[1730954431807,2.6391,189.31,189.25,12.78808985]
[1730954434114,2.6393,189.31,189.25,2.6399]
[1730954434413,2.9,189.33,189.24,2.4865]
[1730954434414,13.04818985,189.33,189.24,2.4865]
[1730954434608,2.6397,189.28,189.24,2.4865]
[1730954434819,13.04818985,189.33,189.24,2.4865]
[1730954435323,2.6397,189.27,189.24,2.4865]
[1730954438918,10.14818985,189.32,189.24,2.4865]
[1730954439817,2.6393,189.3,189.24,2.4865]
[1730954440017,10.14818985,189.32,189.24,2.4865]
[1730954440227,10.14818985,189.32,189.24,1.2326]
[1730954440616,2.6395,189.29,189.24,1.2326]
[1730954441213,10.14818985,189.32,189.24,1.2326]
[1730954441615,12.78728985,189.32,189.24,1.2326]
[1730954441809,2.6391,189.32,189.24,1.2326]
[1730954442214,5.5391,189.32,189.24,1.2326]
[1730954443015,5.5391,189.32,189.24,3.8727]
[1730954443221,2.9,189.32,189.24,1.2326]
[1730954444023,2.6393,189.31,189.24,3.8727]
[1730954444318,2.9,189.32,189.24,1.2326]
[1730954444821,2.6393,189.3,189.24,1.2326]
[1730954445022,2.9,189.32,189.24,1.2326]
[1730954445411,2.6396,189.28,189.24,7.72688777]
[1730954445819,2.6396,189.28,189.24,1.2326]
[1730954446025,2.6395,189.29,189.24,7.72688777]
[1730954449324,2.6395,189.29,189.21,2.6405]
[1730954449525,2.6395,189.29,189.24,6.49428777]
[1730954450115,2.6396,189.28,189.24,6.49428777]
[1730954450320,6.49428777,189.28,189.22,6.49428777]
[1730954451026,6.49428777,189.28,189.2,3.9003]
[1730954451223,2.6398,189.27,189.22,6.49428777]
[1730954452329,2.6399,189.26,189.22,6.49428777]
[1730954452730,6.49428777,189.28,189.21,6.49428777]
[1730954452731,2.6401,189.24,189.21,6.49428777]
[1730954453723,2.6404,189.23,189.21,6.49428777]
[1730954454233,6.49428777,189.25,189.2,1.2597]
[1730954454419,2.9,189.26,189.11,2.6419]
[1730954454420,2.641,189.18,189.11,2.6419]
[1730954454620,2.641,189.18,189.14,6.49428777]
[1730954455333,2.6411,189.17,189.08,3.7353]
[1730954455529,2.6411,189.17,189.1,10.14879663]
[1730954456735,2.6411,189.17,189.1,12.79069663]
[1730954457036,2.6409,189.19,189.13,10.14879663]
[1730954457236,2.9,189.21,189.13,10.14879663]
[1730954458728,2.641,189.18,189.13,10.14879663]
[1730954460636,2.9,189.22,189.15,10.14879663]
[1730954461337,2.9,189.22,189.13,2.6416]
[1730954461533,2.9,189.22,189.15,10.14879663]
[1730954461732,2.6407,189.2,189.15,10.14879663]
[1730954462442,2.9,189.22,189.15,10.14879663]
[1730954462640,2.6405,189.22,189.17,10.14879663]
[1730954463535,2.9,189.24,189.17,10.14879663]
[1730954463734,2.9,189.24,189.16,2.5494]
[1730954464240,2.6408,189.2,189.16,2.5494]
[1730954465630,2.6408,189.19,189.16,2.5494]
[1730954470539,2.6408,189.19,189.15,10.14879663]
[1730954472346,2.9,189.22,189.12,10.14879663]
[1730954473039,2.6413,189.16,189.12,10.14879663]
[1730954475042,2.6415,189.15,189.1,12.67159663]
[1730954476137,2.6415,189.14,189.1,12.67159663]
[1730954477347,2.6415,189.14,189.12,6.49747794]
[1730954478951,2.6415,189.14,189.13,6.49747794]
[1730954479340,2.6414,189.15,189.13,6.49747794]
[1730954482350,2.6414,189.15,189.1,1.2991]
[1730954482351,2.6418,189.13,189.1,6.49747794]
[1730954482941,2.6419,189.12,189.05,3.8775]
[1730954483144,2.6419,189.12,189.1,6.49747794]
[1730954485269,6.49747794,189.14,189.1,6.49747794]
[1730954485270,2.6419,189.11,189.1,6.49747794]
[1730954486467,9.1333962,189.15,189.09,6.49747794]
[1730954486772,2.6421,189.1,189.09,6.49747794]
[1730954488874,2.6421,189.1,189.08,6.49747794]
[1730954489171,2.6421,189.1,189.05,1.2347]
[1730954489370,2.6421,189.1,189.08,6.49747794]
[1730954489667,2.9,189.13,189.05,1.2347]
[1730954489868,2.6423,189.09,189.05,1.2347]
[1730954490173,2.6423,189.09,189.08,6.49747794]
[1730954490667,2.6423,189.09,189.03,2.643]
[1730954490865,2.6423,189.09,189.07,6.49747794]
[1730954492177,2.6423,189.09,189.03,2.643]
[1730954492478,2.6423,189.09,189.07,6.49747794]
[1730954493468,2.6423,189.09,189.03,2.643]
[1730954493672,2.6423,189.09,189.07,6.49747794]
[1730954494172,2.6423,189.09,189.0,186.1754]
[1730954494173,6.49747794,189.07,189.0,186.1754]
[1730954494376,2.9,189.08,189.0,186.1754]
[1730954494377,2.6433,189.02,189.0,186.1754]
[1730954494572,2.9,189.02,189.0,186.1754]
[1730954495069,2.6433,189.01,189.0,186.1754]
[1730954495575,1.2166,189.07,189.0,186.1754]
[1730954495874,9.39747794,189.06,189.0,186.1754]
[1730954496075,2.9,189.05,189.0,186.1754]
[1730954496272,2.643,189.04,189.01,6.49747794]
[1730954496472,2.9,189.03,189.01,6.49747794]
[1730954496970,15.79,189.14,189.02,6.49747794]
[1730954497278,2.9,189.1,189.04,6.49747794]
[1730954498474,2.9,189.09,189.04,6.49747794]
[1730954498873,2.9,189.08,189.01,3.8282]
[1730954499075,2.9,189.08,189.06,6.49747794]
[1730954499770,5.5424,189.08,189.06,6.49747794]
[1730954500477,5.5424,189.08,189.04,6.49747794]
[1730954500778,15.79,189.14,189.06,6.49747794]
[1730954500978,2.9,189.13,189.06,6.49747794]
[1730954501170,2.9,189.13,189.01,3.8282]
[1730954501171,9.39747794,189.13,189.01,3.8282]
[1730954501368,9.39747794,189.13,189.06,6.49747794]
[1730954501574,9.39747794,189.13,189.01,3.8282]
[1730954501878,2.6421,189.1,189.01,3.8282]
[1730954502179,6.49747794,189.11,189.05,6.49747794]
[1730954503385,2.6424,189.08,189.05,6.49747794]
[1730954504280,2.6424,189.08,189.04,6.49747794]
[1730954504470,5.5424,189.08,189.04,6.49747794]
[1730954504673,2.9,189.08,189.06,6.49747794]
[1730954505278,2.9,189.09,189.06,6.49747794]
[1730954505880,5.5422,189.09,189.06,6.49747794]
[1730954506784,5.5422,189.09,189.04,6.49747794]
[1730954507179,6.49747794,189.08,189.01,2.524]
[1730954507480,6.49747794,189.05,189.0,186.1754]
[1730954507680,2.9,189.04,189.0,186.1754]
[1730954508282,5.5429,189.04,189.0,192.67287794]
[1730954508880,2.9,189.04,189.0,186.1754]
[1730954509082,2.6432,189.02,189.0,186.1754]
[1730954509282,6.49747794,189.03,189.0,186.1754]
[1730954509683,2.6433,189.01,189.0,186.1754]
[1730954510586,5.5433,189.01,189.0,186.1754]
[1730954512379,12.04077794,189.01,189.0,186.1754]
[1730954512985,5.5433,189.01,189.0,186.1754]
[1730954514988,5.5433,189.01,189.0,184.1971]
[1730954515184,21.3333,189.01,189.0,182.2188]
[1730954515492,21.3333,189.01,189.0,102.28951504]
[1730954517991,21.3333,189.01,189.0,84.42026791]
[1730954518492,2.6446,188.92,188.86,6.49747794]
[1730954518788,2.9,188.93,188.86,2.6454]
[1730954518988,9.39747794,188.94,188.88,6.49747794]
[1730954519487,9.39747794,188.94,188.87,6.49747794]
[1730954519788,2.6445,188.93,188.87,6.49747794]
[1730954519996,6.49747794,188.93,188.87,6.49747794]
[1730954520199,15.79,189.02,188.9,6.49747794]
[1730954520389,6.49747794,188.97,188.85,1.2418]
[1730954520692,6.49747794,188.94,188.85,1.2418]
[1730954520990,9.14207794,188.93,188.86,6.49747794]
[1730954521190,6.49747794,188.93,188.85,3.8873]
[1730954521391,5.544,188.97,188.88,6.49747794]
[1730954521590,5.544,188.97,188.85,1.2418]
[1730954521591,6.49747794,188.96,188.9,6.49747794]
[1730954521787,2.9,188.97,188.9,6.49747794]
[1730954521993,15.79,189.03,188.92,6.49747794]
[1730954522290,6.49747794,188.99,188.85,4.1418]
[1730954522595,6.49747794,188.98,188.85,4.1418]
[1730954522887,9.39747794,188.98,188.85,4.1418]
[1730954523094,9.39747794,188.98,188.93,6.49747794]
[1730954523595,2.9,188.98,188.93,6.49747794]
[1730954523894,2.9,188.98,188.94,6.49747794]
[1730954524395,2.9,189.0,188.96,6.49747794]
[1730954524790,2.6434,189.01,188.96,6.49747794]
[1730954525994,2.6434,189.01,188.93,1.2606]
[1730954526198,2.6434,189.01,188.96,6.49747794]
[1730954526693,6.49747794,189.0,188.93,1.2606]
[1730954526897,9.14087794,189.01,188.95,6.49747794]
[1730954527192,2.6435,189.0,188.93,1.2606]
[1730954527494,9.14097794,189.0,188.94,6.49747794]
[1730954528193,6.49747794,189.0,188.94,6.49747794]
[1730954528389,2.6437,188.99,188.94,6.49747794]
[1730954528785,6.49747794,189.0,188.92,6.49747794]
[1730954529093,6.49747794,188.93,188.86,6.49747794]
[1730954529398,2.9,188.92,188.81,3.8377]
[1730954529791,2.9,188.92,188.87,6.49747794]
[1730954530185,2.6447,188.91,188.87,6.49747794]
[1730954530391,2.9,188.92,188.81,3.8377]
[1730954530691,2.6444,188.94,188.85,2.6456]
[1730954530895,2.9,188.93,188.81,3.8377]
[1730954531198,2.9,188.93,188.88,6.49747794]
[1730954531791,5.5445,188.93,188.88,6.49747794]
[1730954531990,5.5445,188.93,188.84,2.6457]
[1730954532189,5.5445,188.93,188.88,6.49747794]
[1730954534390,9.14237794,188.9,188.81,6.4838]
[1730954534697,9.14237794,188.9,188.85,6.49747794]
[1730954535190,2.9,188.89,188.85,6.49747794]
[1730954535797,9.14237794,188.9,188.85,6.49747794]
[1730954536093,2.9,188.89,188.85,6.49747794]
[1730954536296,2.9,188.89,188.81,6.49747794]
[1730954536297,2.6453,188.87,188.81,6.49747794]
[1730954536593,9.14277794,188.87,188.81,6.49747794]
[1730954536799,6.49747794,188.87,188.78,2.6465]
[1730954536999,2.6455,188.86,188.78,2.6465]
[1730954537195,6.49747794,188.85,188.76,3.6368]
[1730954537399,2.9,188.84,188.76,3.6368]
[1730954537707,2.9,188.84,188.79,6.49747794]
[1730954537999,5.5457,188.84,188.79,6.49747794]
[1730954538396,2.9,188.83,188.81,6.49747794]
[1730954538799,2.9,188.83,188.76,6.2836]
[1730954539005,2.9,188.83,188.79,6.49747794]
[1730954539306,2.9,188.83,188.76,6.2836]
[1730954539493,2.9,188.83,188.78,6.49747794]
[1730954539699,2.9,188.82,188.78,6.49747794]
[1730954540792,9.39747794,188.82,188.76,6.2836]
[1730954541003,2.9,188.82,188.78,6.49747794]
[1730954541702,2.9,188.82,188.76,3.6368]
[1730954541703,6.49747794,188.81,188.76,3.6368]
[1730954542404,9.39747794,188.82,188.76,10.13427794]
[1730954542701,9.14377794,188.8,188.76,3.6368]
[1730954542907,2.6463,188.8,188.76,10.13427794]
[1730954543403,2.6463,188.8,188.76,1.2321]
[1730954543606,2.6463,188.8,188.76,7.72957794]
[1730954543906,2.6463,188.8,188.76,6.49747794]
[1730954544109,6.49747794,188.78,188.73,2.6472]
[1730954544301,2.9,188.77,188.69,1.2344]
[1730954544503,6.49747794,188.75,188.69,1.2344]
[1730954544692,6.49747794,188.75,188.69,7.73187794]
[1730954544895,9.39747794,188.77,188.7,6.49747794]
[1730954545104,6.49747794,188.77,188.7,6.49747794]
[1730954545299,5.547,188.76,188.7,6.49747794]
[1730954545503,1.2052,188.84,188.7,6.49747794]
[1730954545504,2.9,188.75,188.7,6.49747794]
[1730954546101,6.49747794,188.78,188.69,2.4837]
[1730954546301,6.49747794,188.76,188.69,2.4837]
[1730954546506,6.49747794,188.76,188.7,6.49747794]
[1730954546808,2.647,188.75,188.7,6.49747794]
[1730954547206,2.9,188.74,188.72,6.49747794]
[1730954547509,2.9,188.77,188.72,6.49747794]
[1730954547708,2.9,188.77,188.75,6.49747794]
[1730954548101,3.83940154,188.84,188.75,6.49747794]
[1730954548402,15.79,188.89,188.75,6.49747794]
[1730954548403,6.49747794,188.82,188.75,6.49747794]
[1730954548605,6.49747794,188.79,188.69,2.4837]
[1730954548809,6.49747794,188.81,188.75,6.49747794]
[1730954549011,2.9,188.8,188.75,6.49747794]
[1730954549399,2.9,188.79,188.75,6.49747794]
[1730954549600,2.9,188.79,188.76,6.49747794]
[1730954549804,9.14357794,188.81,188.69,2.4837]
[1730954549805,2.9,188.78,188.69,2.4837]
[1730954550014,2.9,188.78,188.76,6.49747794]
[1730954550306,2.9,188.78,188.69,2.4837]
[1730954550307,2.9,188.78,188.77,6.49747794]
[1730954550708,2.9,188.78,188.73,2.6472]
[1730954550905,2.9,188.78,188.76,6.49747794]
[1730954551111,2.9,188.78,188.7,2.6476]
[1730954551305,2.9,188.78,188.74,6.49747794]
[1730954551905,6.49747794,188.81,188.74,6.49747794]
[1730954552104,2.9,188.8,188.74,6.49747794]
[1730954552712,2.6467,188.78,188.7,2.6477]
[1730954553113,2.6467,188.78,188.74,6.49747794]
[1730954553419,2.6466,188.78,188.7,2.6476]
[1730954553622,2.6466,188.78,188.74,6.49747794]
[1730954553817,9.39747794,188.8,188.74,6.49747794]
[1730954554118,2.6466,188.78,188.74,6.49747794]
[1730954554317,9.39747794,188.8,188.74,6.49747794]
[1730954555217,2.6466,188.78,188.69,5.1314]
[1730954555417,9.39747794,188.8,188.73,6.49747794]
[1730954555919,6.49747794,188.79,188.69,2.4837]
[1730954556119,6.49747794,188.79,188.73,6.49747794]
[1730954558534,2.6467,188.77,188.73,6.49747794]
[1730954559028,2.6466,188.78,188.73,6.49747794]
[1730954560833,6.49747794,188.77,188.69,2.4837]
[1730954561131,2.9,188.76,188.71,6.49747794]
[1730954561326,6.49747794,188.74,188.69,2.4837]
[1730954561523,2.9,188.76,188.69,2.4837]
[1730954561724,6.49747794,188.74,188.69,2.4837]
[1730954562026,2.9,188.76,188.69,2.4837]
[1730954562027,1.2289,188.82,188.69,2.4837]
[1730954562228,6.49747794,188.75,188.69,2.4837]
[1730954562433,2.9,188.74,188.69,2.4837]
[1730954563028,9.39747794,188.74,188.69,2.4837]
[1730954563225,12.04467794,188.74,188.69,2.4837]
[1730954563438,2.9,188.73,188.69,2.4837]
[1730954563830,18.4365,188.79,188.71,6.49747794]
[1730954564132,6.49747794,188.77,188.71,6.49747794]
[1730954564728,2.9,188.76,188.71,6.49747794]
[1730954565535,2.9,188.76,188.72,6.49747794]
[1730954565731,2.9,188.75,188.72,6.49747794]
[1730954565939,2.9,188.75,188.7,2.6476]
[1730954566232,9.14457794,188.74,188.69,2.4837]
[1730954566537,9.14457794,188.74,188.69,1.2344]
[1730954566838,6.49747794,188.74,188.69,1.2344]
[1730954567226,2.9,188.75,188.69,1.2344]
[1730954567227,2.6473,188.73,188.69,1.2344]
[1730954568331,5.5473,188.73,188.69,1.2344]
[1730954568732,6.49747794,188.75,188.72,6.49747794]
[1730954568733,2.9,188.75,188.72,6.49747794]
[1730954568939,1.2289,188.82,188.72,6.49747794]
[1730954569235,9.14387794,188.79,188.73,6.49747794]
[1730954569435,2.6464,188.79,188.71,2.6475]
[1730954569627,2.6478,188.7,188.61,2.6489]
[1730954569829,2.9,188.69,188.62,1.1903]
[1730954570030,10.17389682,188.76,188.64,10.17389682]
[1730954570235,2.6467,188.77,188.69,2.6478]
[1730954570434,10.17389682,188.81,188.69,2.6478]
[1730954570633,2.9,188.8,188.7,1.227]
[1730954570833,2.6467,188.77,188.7,1.227]
[1730954571227,13.07389682,188.8,188.7,1.227]
[1730954571431,2.6466,188.78,188.7,3.8747]
[1730954572240,10.17389682,188.77,188.6,2.9]
[1730954572537,10.17389682,188.77,188.61,8.10010253]
[1730954572736,10.17389682,188.77,188.64,10.17389682]
[1730954572929,2.9,188.76,188.66,10.17389682]
[1730954573633,2.6474,188.72,188.66,10.17389682]
[1730954573832,2.9,188.76,188.66,10.17389682]
[1730954574032,2.9,188.76,188.66,12.82209682]
[1730954574641,2.9,188.75,188.66,12.82209682]
[1730954575438,2.9,188.74,188.66,12.82209682]
[1730954575638,25.96389682,188.79,188.66,12.82209682]
[1730954575639,2.9,188.75,188.66,12.82209682]
[1730954576047,2.6472,188.74,188.66,12.82209682]
[1730954576641,2.9,188.75,188.66,12.82209682]
[1730954577042,2.9,188.75,188.66,10.17389682]
[1730954577638,2.6473,188.73,188.66,12.82209682]
[1730954578136,2.9,188.76,188.69,10.17389682]
[1730954578342,2.9,188.76,188.61,3.7535]
[1730954578343,2.647,188.75,188.7,2.5533]
[1730954580448,2.6474,188.73,188.7,2.5533]
[1730954581146,25.96389682,188.79,188.7,2.5533]
[1730954581345,2.6471,188.75,188.7,2.5533]
[1730954582151,2.9,188.78,188.66,10.17389682]
[1730954582542,2.9,188.78,188.64,2.4659]
[1730954582742,2.9,188.78,188.66,10.17389682]
[1730954582942,2.9,188.77,188.69,10.17389682]
[1730954583339,2.9,188.77,188.64,2.4659]
[1730954583549,2.9,188.77,188.67,10.17389682]
[1730954583851,18.79,188.77,188.67,10.17389682]
[1730954584050,2.9,188.77,188.67,10.17389682]
[1730954584347,2.6473,188.73,188.64,2.4659]
[1730954584652,2.9,188.72,188.64,2.4659]
[1730954584841,2.9,188.71,188.62,10.17389682]
[1730954585046,2.6478,188.69,188.62,10.17389682]
[1730954585243,2.6478,188.69,188.56,2.9]
[1730954585244,2.9,188.7,188.56,2.9]
[1730954585550,2.9,188.7,188.62,12.82259682]
[1730954585744,2.9,188.7,188.63,1.3029]
[1730954586151,2.9,188.7,188.63,2.6012]
[1730954586449,2.9,188.7,188.63,5.2498]
[1730954587342,2.9,188.7,188.63,6.4839]
[1730954588347,2.9,188.7,188.63,3.8353]
[1730954588550,2.6478,188.69,188.63,3.8353]
[1730954588747,10.17389682,188.78,188.65,10.17389682]
[1730954588944,2.6474,188.73,188.65,10.17389682]
[1730954589139,2.9,188.72,188.65,10.17389682]
[1730954589349,2.9,188.72,188.69,6.51400242]
[1730954590846,5.5474,188.72,188.69,6.51400242]
[1730954592250,2.6472,188.74,188.69,6.51400242]
[1730954592450,2.94,188.73,188.69,2.6478]
[1730954592650,6.51400242,188.78,188.71,6.51400242]
[1730954592850,2.6472,188.74,188.71,6.51400242]
[1730954593056,2.94,188.75,188.71,6.51400242]
[1730954593655,2.6474,188.72,188.65,2.6484]
[1730954593856,2.6474,188.72,188.7,6.51400242]
[1730954594254,2.6473,188.73,188.7,6.51400242]
[1730954594656,2.6473,188.73,188.65,2.6484]
[1730954595059,2.94,188.75,188.7,6.51400242]
[1730954595060,2.6471,188.74,188.7,6.51400242]
[1730954595557,2.94,188.75,188.7,6.51400242]
[1730954595760,1.3112,188.82,188.7,6.51400242]
[1730954595958,6.51400242,188.77,188.7,6.51400242]
[1730954596158,2.94,188.76,188.7,6.51400242]
[1730954596360,2.6471,188.75,188.7,6.51400242]
[1730954597356,2.6471,188.75,188.72,6.51400242]
[1730954597558,2.6471,188.75,188.67,2.6481]
[1730954597767,2.6471,188.75,188.71,6.51400242]
[1730954598365,2.6471,188.74,188.63,6.7753]
[1730954598660,6.51400242,188.74,188.64,4.37386716]
[1730954598860,6.51400242,188.74,188.69,6.51400242]
[1730954599453,2.6473,188.73,188.69,6.51400242]
[1730954601758,2.6473,188.73,188.65,2.6483]
[1730954601960,2.6473,188.73,188.7,6.51400242]
[1730954605164,1.3112,188.82,188.7,6.51400242]
[1730954605370,6.51400242,188.8,188.74,6.51400242]
[1730954605867,2.6467,188.77,188.74,6.51400242]
[1730954607067,2.6467,188.77,188.63,3.8353]
[1730954607068,6.51400242,188.8,188.63,3.8353]
[1730954607262,6.51400242,188.78,188.72,6.51400242]
[1730954607767,2.6468,188.77,188.72,6.51400242]
[1730954608161,6.51400242,188.78,188.72,6.51400242]
[1730954608368,6.51400242,188.75,188.63,3.8353]
[1730954608568,6.51400242,188.75,188.71,6.51400242]
[1730954608970,2.94,188.76,188.71,6.51400242]
[1730954609174,2.6472,188.74,188.71,6.51400242]
[1730954610368,2.6474,188.72,188.71,6.51400242]
[1730954611472,2.6473,188.73,188.71,6.51400242]
[1730954612572,2.6476,188.71,188.63,3.8353]
[1730954612778,2.94,188.71,188.67,6.51400242]
[1730954613676,2.94,188.71,188.63,3.8353]
[1730954613975,2.94,188.71,188.66,6.51400242]
[1730954614364,2.6487,188.63,188.51,20.65864212]
[1730954614568,2.6487,188.63,188.59,6.51400242]
[1730954615174,2.6488,188.62,188.54,2.6499]
[1730954615376,2.6488,188.62,188.6,6.51400242]
[1730954615978,2.6489,188.61,188.6,6.51400242]
[1730954616176,2.6489,188.61,188.53,6.4242]
[1730954616477,9.45400242,188.65,188.54,4.37690376]
[1730954616672,2.94,188.65,188.6,6.51400242]
[1730954617474,2.94,188.65,188.53,3.7741]
[1730954617672,2.94,188.65,188.57,6.51400242]
[1730954617974,6.51400242,188.63,188.57,6.51400242]
[1730954618169,9.16290242,188.62,188.53,3.7741]
[1730954618368,6.51400242,188.62,188.57,6.51400242]
[1730954619079,2.6492,188.59,188.53,3.7741]
[1730954619274,6.51400242,188.62,188.53,3.7741]
[1730954619478,6.51400242,188.62,188.57,6.51400242]
[1730954619673,6.51400242,188.62,188.53,3.7741]
[1730954619878,6.51400242,188.62,188.57,6.51400242]
[1730954620480,2.6491,188.6,188.57,6.51400242]
[1730954620977,2.6488,188.62,188.57,6.51400242]
[1730954621174,6.51400242,188.64,188.57,6.51400242]
[1730954621880,2.6488,188.62,188.57,6.51400242]
[1730954622079,5.5688,188.62,188.57,6.51400242]
[1730954622481,5.5688,188.62,188.53,6.4241]
[1730954622686,5.5688,188.62,188.57,6.51400242]
[1730954624680,5.5688,188.62,188.54,2.6499]
[1730954624886,5.5688,188.62,188.57,6.51400242]
[1730954626389,2.92,188.64,188.59,6.51400242]
[1730954627083,5.5686,188.64,188.59,6.51400242]
[1730954627481,2.92,188.64,188.59,6.51400242]
[1730954627679,2.17688,188.72,188.59,6.51400242]
[1730954627980,2.17688,188.72,188.6,1.1929]
[1730954627981,2.92,188.71,188.6,1.1929]
[1730954628177,9.43400242,188.71,188.64,6.51400242]
[1730954628381,6.51400242,188.69,188.63,6.51400242]
[1730954628990,6.51400242,188.68,188.61,2.4619]
[1730954629192,6.51400242,188.68,188.61,8.97590242]
[1730954629584,6.51400242,188.66,188.61,8.97590242]
[1730954629786,9.43400242,188.66,188.61,8.97590242]
[1730954629987,2.6485,188.65,188.61,8.97590242]
[1730954630189,2.6485,188.65,188.61,6.51400242]
[1730954630689,2.92,188.66,188.6,1.1929]
[1730954630892,2.6485,188.64,188.6,1.1929]
[1730954631692,2.6487,188.63,188.6,1.1929]
[1730954632286,6.51400242,188.65,188.6,1.1929]
[1730954632486,2.6489,188.62,188.6,1.1929]